[Event "Romanian-ch Youth Open U14 2024"]
[Site "Eforie Nord"]
[Date "2024.04.19"]
[Round "9.2"]
[White "Sprincean, Lukas George"]
[Black "Tanasie, Cosmin"]
[Result "1-0"]
[ECO "B35"]
[WhiteElo "1921"]
[BlackElo "2017"]
[Annotator "TA"]
[PlyCount "113"]
[EventDate "2024.04.10"]
[EventType "swiss"]
[EventCountry "ROU"]
[SourceTitle "playchess.com"]
[Source "ChessBase"]
[SourceQuality "1"]
[TimeControl "5400+30"]

{[%evp 22,113,49,39,52,38,50,43,51,37,37,46,68,51,81,78,154,135,148,144,133,132,176,178,177,172,182,102,237,162,162,162,175,171,173,166,164,174,194,212,185,171,160,135,123,0,144,138,139,130,141,144,136,135,224,124,558,564,564,549,563,507,545,535,528,501,445,410,1765,1645,1690,1128,1631,1631,1398,572,29972,29975,29973,29974,12795,1676,29983,29979,29977,29978,29977,29978,29984,29985,29985,29986,29986,29985]} 1. e4 {[%emt 0:03:03]} c5 {[%emt 0:00:06]} 2. Nf3 {[%emt 0:00:20]} Nc6 {[%emt 0:00:06]} 3. d4 {[%emt 1:28:37]} cxd4 {[%emt 0:00:07]} 4. Nxd4 {[%emt 0:00:00]} g6 {[%emt 0:00:04]} 5. Be3 {[%emt 0:00:00]} Bg7 {[%emt 0:00:07]} 6. Nc3 {[%emt 0:00:00]} Nf6 {[%emt 0:00:04]} 7. Bc4 {[%emt 0:00:00]} Qa5 {[%emt 0:00:04]} 8. O-O {[%emt 0:00:00]} O-O {[%emt 0:00:04]} 9. Bb3 {[%emt 0:00:00]} d6 {[%emt 0:00:03]} 10. h3 {[%emt 0:00:00]} Bd7 {[%emt 0:00:04]} 11. Re1 {[%emt 0:00:00]} Nxd4 {[%emt 0:05:02]} 12. Bxd4 {[%emt 0:00:00]} Bc6 {[%emt 0:00:29] [#]} 13. Nd5 $1 {[%emt 0:00:00]} Bxd5 {[%emt 0:04:15]} 14. exd5 {[%emt 0:00:00]} Rfe8 {[%emt 0:01:07] White is slightly better.} 15. c4 {[%emt 0:00:00]} a6 {[%emt 0:08:04]} 16. Bc3 {[%emt 0:00:00]} Qc5 {[%emt 0:00:40]} 17. Rc1 {[%emt 0:00:00]} Rac8 {[%emt 0:08:43]} 18. Qd2 {[%emt 0:00:00]} Nd7 {[%emt 0:05:15]} (18... Qb6 $142) 19. Bxg7 $1 $16 {[%emt 0:00:00]} Kxg7 {[%emt 0:00:06]} 20. Ba4 {[%emt 0:00:00]} Qc7 {[%emt 0:06:30]} 21. b4 {[%emt 0:00:00][%cal Oc4c5] White has more active pieces.} e6 {[%emt 0:05:25] [#]} 22. c5 $1 {[%emt 0:00:00][%mdl 512] c6 is the strong threat.} exd5 {[%emt 0:04:41][%cal Rd6c5]} 23. Rxe8 {[%emt 0:00:00]} Rxe8 {[%emt 0:00:33] [#]} 24. Qxd5 {[%emt 0:00:00]} (24. c6 $1 $18 {[%cal Rc6d7]} bxc6 25. Rxc6) 24... Rd8 {[%emt 0:06:26]} (24... b5 $16) 25. Bxd7 {[%emt 0:00:00]} (25. Qxd6 Qxd6 26. cxd6 Nb6 $11) 25... Rxd7 $18 {[%emt 0:13:40][%mdl 4096] Endgame. KQR-KQR} 26. Rd1 {[%emt 0:00:00]} Qc6 {[%emt 0:00:24]} 27. Qd4+ {[%emt 0:00:00]} (27. cxd6 Qxd5 28. Rxd5 Kf6 $11) 27... f6 {[%emt 0:00:16]} 28. cxd6 {[%emt 0:00:00]} Kf7 {[%emt 0:00:07]} 29. Qf4 {[%emt 0:00:00]} h5 {[%emt 0:05:57]} 30. a3 {[%emt 0:00:00]} b6 {[%emt 0:01:02]} 31. Qh6 {[%emt 0:00:00] Re1 would now be deadly.} Rxd6 {[%emt 0:00:26]} 32. Qh7+ {[%emt 0:00:00]} (32. Rxd6 Qxd6 33. Qh7+ Kf8 34. Qxg6 a5 35. Qh6+ (35. Qxh5 axb4 36. axb4 Qxb4 $11) 35... Ke7) 32... Kf8 {[%emt 0:00:06]} 33. Rxd6 {[%emt 0:00:00]} (33. Qh8+ $16 Kf7 34. Qh7+ (34. Rxd6 Qc1+ 35. Kh2 Qf4+ 36. Kg1 Qc1+ 37. Kh2 Qf4+ 38. Kh1 Qc1+ 39. Kh2 $11) 34... Kf8 35. Qh6+ Kf7 36. Rc1 (36. Rxd6 Qxd6 37. Qh7+ Kf8 $18)) 33... Qxd6 {[%emt 0:00:00] White now steadily converts the win.} (33... Qc1+ $1 $11 {remains equal.} 34. Kh2 Qf4+ 35. Kh1 Qc1+ 36. Kh2 Qf4+ 37. Kg1 Qc1+ 38. Kh2) 34. Qxg6 $16 {[%emt 0:00:06] KQ-KQ} Qf4 {[%emt 0:00:45]} 35. g3 {[%emt 0:02:33]} ({Much worse is} 35. Qxh5 $6 Qc1+ 36. Kh2 Qf4+ 37. Kh1 Qc1+ 38. Kh2 Qf4+ 39. Kg1 Qc1+ 40. Kh2 $11) 35... Qf3 {[%emt 0:00:39]} 36. Qh6+ {[%emt 0:01:29]} Kf7 {[%emt 0:01:22]} 37. Qe3 {[%emt 0:00:15]} Qc6 {[%emt 0:01:12] [#]} (37... Qd1+ $16 38. Kg2 Qd5+ 39. Qf3 Qb5 40. Qb7+ Kg6 41. Qe4+ Kg7 42. Qe7+ Kg6) 38. Kh2 {[%emt 0:01:40]} ({White should try} 38. Qe2 $1 $18) 38... a5 $2 {[%emt 0:01:03][%mdl 8192]} (38... b5 $16 {is more resistant.} 39. Qd3 Kg7) 39. bxa5 $18 {[%emt 0:00:39]} bxa5 {[%emt 0:00:17]} 40. Qa7+ {[%emt 0:00:16]} Kg6 {[%emt 0:00:42]} 41. Qxa5 {[%emt 0:00:09]} Qf3 {[%emt 0:00:36]} 42. Qc5 {[%emt 0:01:28]} h4 {[%emt 0:00:12]} 43. gxh4 {[%emt 0:00:50][%cal Oh4h5]} Qf4+ {[%emt 0:00:07]} 44. Kg2 {[%emt 0:00:11] White threatens h5+ and mate.} Qe4+ {[%emt 0:00:06]} (44... Qxh4 $142 45. Qb4 Qh8 46. Qe4+ Kg7) 45. Kg3 {[%emt 0:01:09] aiming for h5+.} Qd3+ {[%emt 0:00:09]} 46. Qe3 {[%emt 0:01:04]} Qd6+ {[%emt 0:00:04]} 47. Kg2 {[%emt 0:00:15] White wants to mate with Qg3+.} Qd5+ {[%emt 0:01:22]} 48. Kh2 {[%emt 0:00:06]} Qc4 {[%emt 0:01:00]} 49. Qg3+ {[%emt 0:00:34]} Kf7 {[%emt 0:00:31]} 50. h5 {[%emt 0:00:16]} Qc1 {[%emt 0:00:20]} 51. a4 {[%emt 0:00:37][%cal Ba3a4,Ba4a5][%mdl 32] a5 would kill now.} Qd1 {[%emt 0:00:12]} 52. Qg6+ {[%emt 0:01:33] White mates.} Ke7 {[%emt 0:00:02]} 53. Qg7+ {[%emt 0:01:25]} Ke8 {[%emt 0:00:05]} 54. h6 {[%emt 0:01:36]} Qf3 {[%emt 0:00:42]} 55. Qg3 {[%emt 0:00:27]} Qh5 {[%emt 0:00:03] [#]} 56. a5 $1 {[%emt 0:00:34]} Qxh6 {[%emt 0:00:11]} 57. Qe3+ {[%emt 0:00:05] Weighted Error Value: White=0.29 (precise) /Black=0.65.  Loses game:     	---       	Black=1      Mistake:       	White=3     	Black=5      Inaccurate:     	White=1     	Black=2      OK:         	White=16    	Black=8      Best:        	White=7     	Black=4      Strong:       	White=1     	---} 1-0